{"text_format":"1","workbook":"xlsx","n_sheets":3,"sheets":["DADOS","2º SEMESTRE","GRÁFICOS"],"not_rendered":{"charts":7,"images":0,"macros":0,"external_links":0,"defined_names":0,"comments":0,"pivot_tables":0},"unopened":[],"bounds":{"document_bytes":16777216,"sheet_cells":100000,"rows_first":2000,"rows_last":500,"rows_between":2000,"halvings":0,"cell_chars":16384,"cell_head_chars":4096},"cells_cut":0,"cells_raw":0,"read":"whole","date_system":"1900"}

{"sheet":"DADOS","index":0,"n_rows":58,"n_cols":9,"rows_kept":58,"cut":false,"hidden":false,"merged":[[67,1,67,5],[68,1,68,5],[69,1,69,5],[70,1,70,5],[58,0,58,8],[61,1,61,5],[62,1,62,5],[63,1,63,5],[64,1,64,5],[65,1,65,5],[66,1,66,5],[59,1,59,5],[60,1,60,5],[54,1,54,5],[55,1,55,5],[56,1,56,5],[57,1,57,5],[48,1,48,5],[49,1,49,5],[50,1,50,5],[51,1,51,5],[52,1,52,5],[53,1,53,5],[45,1,45,5],[46,1,46,5],[37,1,37,5],[38,1,38,5],[39,1,39,5],[40,1,40,5],[41,1,41,5],[47,1,47,5],[36,1,36,5],[25,1,25,5],[26,1,26,5],[27,1,27,5],[28,1,28,5],[29,1,29,5],[30,1,30,5],[31,1,31,5],[32,1,32,5],[33,1,33,5],[34,1,34,5],[35,1,35,5],[42,1,42,5],[43,1,43,5],[44,1,44,5],[24,1,24,5],[13,1,13,5],[14,1,14,5],[15,1,15,5],[16,1,16,5],[17,1,17,5],[18,1,18,5],[19,1,19,5],[20,1,20,5],[21,1,21,5],[22,1,22,5],[23,1,23,5],[12,1,12,5],[0,0,0,8],[1,0,1,8],[2,0,2,8],[3,1,3,8],[4,1,4,8],[6,1,6,5],[7,1,7,5],[8,1,8,5],[9,1,9,5],[10,1,10,5],[11,1,11,5],[5,3,5,4]]}
["ESTADO DE MATO GROSSO DO SUL"]
["PREFEITURA MUNICIPAL DE CAMPO GRANDE"]
["SECRETARIA MUNICIPAL DE EDUCAÇÃO"]
["ESCOLA:"]
["PROFESSOR:"]
["TURMA",null,"PERÍODO ",null,null,"N. alunos",{"$f":"COUNTA(B8:F58)","v":0}]
["N. ","NOME",null,null,null,null,"DATA DE NASCIMENTO","IDADE","CASO TENHA LAUDO REGISTRE."]
[{"$f":"ROW(B8)-7","v":1},null,null,null,null,null,null,{"$f":"IF(G8=\"\",\"\",YEAR(TODAY())-YEAR(G8))","v":""}]
[{"$f":"ROW(B9)-7","v":2},null,null,null,null,null,null,{"$f":"IF(G9=\"\",\"\",YEAR(TODAY())-YEAR(G9))","v":""}]
[3,null,null,null,null,null,null,""]
[4,null,null,null,null,null,null,""]
[5,null,null,null,null,null,null,""]
[6,null,null,null,null,null,null,""]
[7,null,null,null,null,null,null,""]
[8,null,null,null,null,null,null,""]
[9,null,null,null,null,null,null,""]
[10,null,null,null,null,null,null,""]
[11,null,null,null,null,null,null,""]
[12,null,null,null,null,null,null,""]
[13,null,null,null,null,null,null,""]
[14,null,null,null,null,null,null,""]
[15,null,null,null,null,null,null,""]
[16,null,null,null,null,null,null,""]
[17,null,null,null,null,null,null,""]
[18,null,null,null,null,null,null,""]
[19,null,null,null,null,null,null,""]
[20,null,null,null,null,null,null,""]
[21,null,null,null,null,null,null,""]
[22,null,null,null,null,null,null,""]
[23,null,null,null,null,null,null,""]
[24,null,null,null,null,null,null,""]
[25,null,null,null,null,null,null,""]
[26,null,null,null,null,null,null,""]
[27,null,null,null,null,null,null,""]
[28,null,null,null,null,null,null,""]
[29,null,null,null,null,null,null,""]
[30,null,null,null,null,null,null,""]
[31,null,null,null,null,null,null,""]
[32,null,null,null,null,null,null,""]
[33,null,null,null,null,null,null,""]
[34,null,null,null,null,null,null,""]
[35,null,null,null,null,null,null,""]
[36,null,null,null,null,null,null,""]
[37,null,null,null,null,null,null,""]
[38,null,null,null,null,null,null,""]
[39,null,null,null,null,null,null,""]
[40,null,null,null,null,null,null,""]
[41,null,null,null,null,null,null,""]
[42,null,null,null,null,null,null,""]
[43,null,null,null,null,null,null,""]
[44,null,null,null,null,null,null,""]
[45,null,null,null,null,null,null,""]
[46,null,null,null,null,null,null,""]
[47,null,null,null,null,null,null,""]
[48,null,null,null,null,null,null,""]
[49,null,null,null,null,null,null,""]
[50,null,null,null,null,null,null,""]
[51,null,null,null,null,null,null,""]

{"sheet":"2º SEMESTRE","index":1,"n_rows":90,"n_cols":71,"rows_kept":90,"cut":false,"hidden":false,"merged":[[5,51,5,60],[5,61,5,69],[6,61,7,61],[6,62,7,62],[6,63,7,63],[6,64,7,64],[6,65,7,65],[6,66,7,66],[6,67,7,67],[6,68,7,68],[6,69,7,69],[87,18,87,19],[88,18,88,19],[89,18,89,19],[80,18,80,19],[82,18,82,20],[83,18,83,19],[84,18,84,19],[86,18,86,20],[74,18,74,19],[75,18,75,19],[77,18,77,20],[78,18,78,19],[79,18,79,19],[51,1,51,5],[52,1,52,5],[53,1,53,5],[48,1,48,5],[49,1,49,5],[50,1,50,5],[61,0,61,6],[57,1,57,5],[58,1,58,5],[59,1,59,5],[54,1,54,5],[55,1,55,5],[56,1,56,5],[60,0,60,6],[46,1,46,5],[47,1,47,5],[42,1,42,5],[43,1,43,5],[44,1,44,5],[45,1,45,5],[39,1,39,5],[40,1,40,5],[41,1,41,5],[36,1,36,5],[37,1,37,5],[38,1,38,5],[33,1,33,5],[34,1,34,5],[35,1,35,5],[30,1,30,5],[31,1,31,5],[32,1,32,5],[27,1,27,5],[28,1,28,5],[29,1,29,5],[24,1,24,5],[25,1,25,5],[26,1,26,5],[21,1,21,5],[22,1,22,5],[23,1,23,5],[9,1,9,5],[10,1,10,5],[11,1,11,5],[18,1,18,5],[19,1,19,5],[20,1,20,5],[15,1,15,5],[16,1,16,5],[17,1,17,5],[12,1,12,5],[13,1,13,5],[14,1,14,5],[5,46,5,50],[6,50,7,50],[6,46,7,46],[6,0,8,0],[6,1,8,5],[6,6,8,6],[0,0,0,6],[1,0,1,6],[2,0,2,6],[3,1,3,6],[4,1,4,6],[6,47,7,47],[6,48,7,48],[6,49,7,49],[6,70,7,70],[6,60,7,60],[6,51,7,51],[6,52,7,52],[6,53,7,53],[6,54,7,54],[6,55,7,55],[6,59,7,59],[6,56,7,56],[6,57,7,57],[6,58,7,58],[71,18,71,20],[72,18,72,19],[73,18,73,19],[0,32,0,35],[65,24,66,26],[6,31,7,31],[6,7,7,11],[6,22,7,30],[6,12,7,21],[60,23,60,30],[61,23,61,30],[75,24,75,26],[76,24,76,26],[64,18,64,29],[1,33,1,38],[2,33,2,38],[3,33,3,38],[4,33,4,38],[5,33,5,38],[6,33,6,38],[7,33,7,38],[8,33,8,38],[9,33,9,38],[10,33,10,38],[71,24,71,26],[72,24,72,26],[73,24,73,26],[66,18,66,20],[67,18,67,19],[68,18,68,19],[69,18,69,19],[67,24,67,26],[68,24,68,26],[69,24,69,26],[70,24,70,26]]}
["ESTADO DE MATO GROSSO DO SUL",null,null,null,null,null,null,null,null,null,null,null,null,null,null,null,null,null,null,null,null,null,null,null,null,null,null,null,null,null,null,null,null,null,null,null,null,null,null,null,null,null,null,null,null,null,"Ler em velocidade adequada","Ruim","Ler sem expressividade","Rota Lexical","Pré-Silábica"]
["PREFEITURA MUNICIPAL DE CAMPO GRANDE",null,null,null,null,null,null,null,null,null,null,null,null,null,null,null,null,null,null,null,null,null,null,null,null,null,null,null,null,null,null,null,null,null,null,null,null,null,null,null,null,null,null,null,null,null,"Ler em baixa velocidade","Bom","Ler com pouca expressividade","Rota Fonológica","Silábica"]
["SECRETARIA MUNICIPAL DE EDUCAÇÃO",null,null,null,null,null,null,null,null,null,null,null,null,null,null,null,null,null,null,null,null,null,null,null,null,null,null,null,null,null,null,null,"A","Escreveu adequadamente as palavras do texto? ",null,null,null,null,null,null,null,null,null,null,null,null,"Ler em alta velocidade.","Regular","Ler com expressividade adequada",null,"Alfabética"]
["ESCOLA:",{"$f":"IF(DADOS!B4=\"\",\"\",DADOS!B4)","v":""},null,null,null,null,null,null,null,null,null,null,null,null,null,null,null,null,null,null,null,null,null,null,null,null,null,null,null,null,null,null,"B","Iniciou os parágrafos com letra maiúscula? ",null,null,null,null,null,null,null,null,null,null,null,null,null,"ÓtimA"]
["PROFESSOR:",{"$f":"IF(DADOS!B5=\"\",\"\",DADOS!B5)","v":""},null,null,null,null,null,null,null,null,null,null,null,null,null,null,null,null,null,null,null,null,null,null,null,null,null,null,null,null,null,null,"C","Pontuou adequadamente o texto? "]
["TURMA",{"$f":"IF(DADOS!B6=\"\",\"\",DADOS!B6)","v":""},"PERÍODO ",{"$f":"IF(DADOS!D6=\"\",\"\",DADOS!D6)","v":""},"N. alunos",{"$f":"DADOS!G6","v":0},null,null,null,null,null,null,null,null,null,null,null,null,null,null,null,null,null,null,null,null,null,null,null,null,null,null,"D","Acentuou corretamente as palavras do texto? ",null,null,null,null,null,null,null,null,null,null,null,null,"FLUÊNCIA DE LEITURA",null,null,null,null,"COMPREENSÃO DE TEXTO",null,null,null,null,null,null,null,null,null,"PRODUÇÃO TEXTUAL"]
["N. ","NOME",null,null,null,null,"IDADE","FLUÊNCIA DE LEITURA",null,null,null,null,"COMPREENSÃO DE TEXTO",null,null,null,null,null,null,null,null,null,"PRODUÇÃO DE TEXTO",null,null,null,null,null,null,null,null,"Situação","E","Escreveu com letra legível para que todos possam entender? ",null,null,null,null,null,null,null,null,null,null,null,null,"QESTÃO1","QUESTÃO2","QUESTÃO3","QUESTÃO4","QUESTÃO5","QUESTÃO 1","QUESTÃO 2","QUESTÃO 3","QUESTÃO 4","QUESTÃO 5","QUESTÃO 6","QUESTÃO 7","QUESTÃO 8","QUESTÃO9","QUESTÃO10","A","B","C","D","E","F","G","H","I","TOTAL"]
[null,null,null,null,null,null,null,null,null,null,null,null,null,null,null,null,null,null,null,null,null,null,null,null,null,null,null,null,null,null,null,null,"F","Substituiu palavras repetidas e eliminou as desnecessárias? "]
[null,null,null,null,null,null,null,"QUESTÃO 1","QUESTÃO 2","QUESTÃO 3","QUESTÃO 4","QUESTÃO 5","QUESTÃO 1","QUESTÃO 2","QUESTÃO 3","QUESTÃO 4","QUESTÃO 5","QUESTÃO 6","QUESTÃO 7","QUESTÃO 8","QUESTÃO 9","QUESTÃO 10","A","B","C","D","E","F","G","H","I",null,"G","Estabeleceu a articulação das ideias no texto?"]
[{"$f":"ROW(B9)-8","v":1},{"$f":"IF(DADOS!B8=\"\",\"\",DADOS!B8)","v":""},null,null,null,null,{"$f":"IF(DADOS!B8=\"\",\"\",DADOS!H8)","v":""},null,null,null,null,null,null,null,null,null,null,null,null,null,null,null,null,null,null,null,null,null,null,null,null,{"$f":"IF(B10<>\"\",IF(BS10<=12.5,\"Regular\",IF(18<=BS10<=22.5,\"Avançado\",\"Proficiente\")),\"\")","v":""},"H","Demonstrar o uso correto da estrutura textual: introdução, desenvolvimento e conclusão;",null,null,null,null,null,null,null,null,null,null,null,null,{"$f":"IF(H10=AU$1,1,IF(H10=AU$3,0.5,0))","v":0},{"$f":"IF(I10=AV$1,1,IF(I10=AV$3,0.5,0))","v":0},0,{"$f":"IF(K10=AX$1,1,IF(K10=AX$2,0.5,0))","v":0},{"$f":"IF(L10=AY$1,1,IF(L10=AY$3,0.5,0))","v":0},{"$f":"IF(M10=\"B\",1,\"\")","v":""},{"$f":"IF(N10=\"B\",1,\"\")","v":""},{"$f":"IF(O10=\"D\",1,\"\")","v":""},{"$f":"IF(P10=\"B\",1,\"\")","v":""},{"$f":"IF(Q10=\"A\",1,\"\")","v":""},{"$f":"IF(R10=\"C\",1,\"\")","v":""},{"$f":"IF(S10=\"C\",1,\"\")","v":""},{"$f":"IF(T10=\"C\",1,\"\")","v":""},{"$f":"IF(U10=\"D\",1,\"\")","v":""},{"$f":"IF(V10=\"D\",1,\"\")","v":""},{"$f":"IF(W10=\"SIM\",1,IF(W10=\"PARCIALMENTE\",0.5,0))","v":0},{"$f":"IF(X10=\"SIM\",1,IF(X10=\"PARCIALMENTE\",0.5,0))","v":0},{"$f":"IF(Y10=\"SIM\",1,IF(Y10=\"PARCIALMENTE\",0.5,0))","v":0},{"$f":"IF(Z10=\"SIM\",1,IF(Z10=\"PARCIALMENTE\",0.5,0))","v":0},{"$f":"IF(AA10=\"SIM\",1,IF(AA10=\"PARCIALMENTE\",0.5,0))","v":0},{"$f":"IF(AB10=\"SIM\",1,IF(AB10=\"PARCIALMENTE\",0.5,0))","v":0},{"$f":"IF(AC10=\"SIM\",1,IF(AC10=\"PARCIALMENTE\",0.5,0))","v":0},{"$f":"IF(AD10=\"SIM\",1,IF(AD10=\"PARCIALMENTE\",0.5,0))","v":0},{"$f":"IF(AE10=\"SIM\",1,IF(AE10=\"PARCIALMENTE\",0.5,0))","v":0},{"$f":"SUM(AU10:BR10)","v":0}]
[{"$f":"ROW(B10)-8","v":2},{"$f":"IF(DADOS!B9=\"\",\"\",DADOS!B9)","v":""},null,null,null,null,{"$f":"IF(DADOS!B9=\"\",\"\",DADOS!H9)","v":""},null,null,null,null,null,null,null,null,null,null,null,null,null,null,null,null,null,null,null,null,null,null,null,null,{"$f":"IF(B11<>\"\",IF(BS11<=12.5,\"Regular\",IF(18<=BS11<=22.5,\"Avançado\",\"Proficiente\")),\"\")","v":""},"I","Apresentar os elementos do texto solicitado:local e data, vocativo, texto com os relatos do dia, e assinatura ao final.",null,null,null,null,null,null,null,null,null,null,null,null,{"$f":"IF(H11=AU$1,1,IF(H11=AU$3,0.5,0))","v":0},{"$f":"IF(I11=AV$1,1,IF(I11=AV$3,0.5,0))","v":0},{"$f":"IF(J11=AW$1,1,IF(J11=AW$3,0.5,0))","v":0},{"$f":"IF(K11=AX$1,1,IF(K11=AX$2,0.5,0))","v":0},{"$f":"IF(L11=AY$1,1,IF(L11=AY$3,0.5,0))","v":0},{"$f":"IF(M11=\"B\",1,\"\")","v":""},{"$f":"IF(N11=\"B\",1,\"\")","v":""},{"$f":"IF(O11=\"D\",1,\"\")","v":""},{"$f":"IF(P11=\"B\",1,\"\")","v":""},{"$f":"IF(Q11=\"A\",1,\"\")","v":""},{"$f":"IF(R11=\"C\",1,\"\")","v":""},{"$f":"IF(S11=\"C\",1,\"\")","v":""},{"$f":"IF(T11=\"C\",1,\"\")","v":""},{"$f":"IF(U11=\"D\",1,\"\")","v":""},{"$f":"IF(V11=\"D\",1,\"\")","v":""},{"$f":"IF(W11=\"SIM\",1,IF(W11=\"PARCIALMENTE\",0.5,0))","v":0},{"$f":"IF(X11=\"SIM\",1,IF(X11=\"PARCIALMENTE\",0.5,0))","v":0},{"$f":"IF(Y11=\"SIM\",1,IF(Y11=\"PARCIALMENTE\",0.5,0))","v":0},{"$f":"IF(Z11=\"SIM\",1,IF(Z11=\"PARCIALMENTE\",0.5,0))","v":0},{"$f":"IF(AA11=\"SIM\",1,IF(AA11=\"PARCIALMENTE\",0.5,0))","v":0},{"$f":"IF(AB11=\"SIM\",1,IF(AB11=\"PARCIALMENTE\",0.5,0))","v":0},{"$f":"IF(AC11=\"SIM\",1,IF(AC11=\"PARCIALMENTE\",0.5,0))","v":0},{"$f":"IF(AD11=\"SIM\",1,IF(AD11=\"PARCIALMENTE\",0.5,0))","v":0},{"$f":"IF(AE11=\"SIM\",1,IF(AE11=\"PARCIALMENTE\",0.5,0))","v":0},{"$f":"SUM(AU11:BR11)","v":0}]
[3,{"$f":"IF(DADOS!B10=\"\",\"\",DADOS!B10)","v":""},null,null,null,null,{"$f":"IF(DADOS!B10=\"\",\"\",DADOS!H10)","v":""},null,null,null,null,null,null,null,null,null,null,null,null,null,null,null,null,null,null,null,null,null,null,null,null,"",null,null,null,null,null,null,null,null,null,null,null,null,null,null,0,0,0,0,0,"","","","","","","","","","",0,0,0,0,0,0,0,0,0,0]
[4,{"$f":"IF(DADOS!B11=\"\",\"\",DADOS!B11)","v":""},null,null,null,null,{"$f":"IF(DADOS!B11=\"\",\"\",DADOS!H11)","v":""},null,null,null,null,null,null,null,null,null,null,null,null,null,null,null,null,null,null,null,null,null,null,null,null,"",null,null,null,null,null,null,null,null,null,null,null,null,null,null,0,0,0,0,0,"","","","","","","","","","",0,0,0,0,0,0,0,0,0,0]
[5,{"$f":"IF(DADOS!B12=\"\",\"\",DADOS!B12)","v":""},null,null,null,null,{"$f":"IF(DADOS!B12=\"\",\"\",DADOS!H12)","v":""},null,null,null,null,null,null,null,null,null,null,null,null,null,null,null,null,null,null,null,null,null,null,null,null,"",null,null,null,null,null,null,null,null,null,null,null,null,null,null,0,0,0,0,0,"","","","","","","","","","",0,0,0,0,0,0,0,0,0,0]
[6,{"$f":"IF(DADOS!B13=\"\",\"\",DADOS!B13)","v":""},null,null,null,null,{"$f":"IF(DADOS!B13=\"\",\"\",DADOS!H13)","v":""},null,null,null,null,null,null,null,null,null,null,null,null,null,null,null,null,null,null,null,null,null,null,null,null,"",null,null,null,null,null,null,null,null,null,null,null,null,null,null,0,0,0,0,0,"","","","","","","","","","",0,0,0,0,0,0,0,0,0,0]
[7,{"$f":"IF(DADOS!B14=\"\",\"\",DADOS!B14)","v":""},null,null,null,null,{"$f":"IF(DADOS!B14=\"\",\"\",DADOS!H14)","v":""},null,null,null,null,null,null,null,null,null,null,null,null,null,null,null,null,null,null,null,null,null,null,null,null,"",null,null,null,null,null,null,null,null,null,null,null,null,null,null,0,0,0,0,0,"","","","","","","","","","",0,0,0,0,0,0,0,0,0,0]
[8,{"$f":"IF(DADOS!B15=\"\",\"\",DADOS!B15)","v":""},null,null,null,null,{"$f":"IF(DADOS!B15=\"\",\"\",DADOS!H15)","v":""},null,null,null,null,null,null,null,null,null,null,null,null,null,null,null,null,null,null,null,null,null,null,null,null,"",null,null,null,null,null,null,null,null,null,null,null,null,null,null,0,0,0,0,0,"","","","","","","","","","",0,0,0,0,0,0,0,0,0,0]
[9,{"$f":"IF(DADOS!B16=\"\",\"\",DADOS!B16)","v":""},null,null,null,null,{"$f":"IF(DADOS!B16=\"\",\"\",DADOS!H16)","v":""},null,null,null,null,null,null,null,null,null,null,null,null,null,null,null,null,null,null,null,null,null,null,null,null,"",null,null,null,null,null,null,null,null,null,null,null,null,null,null,0,0,0,0,0,"","","","","","","","","","",0,0,0,0,0,0,0,0,0,0]
[10,{"$f":"IF(DADOS!B17=\"\",\"\",DADOS!B17)","v":""},null,null,null,null,{"$f":"IF(DADOS!B17=\"\",\"\",DADOS!H17)","v":""},null,null,null,null,null,null,null,null,null,null,null,null,null,null,null,null,null,null,null,null,null,null,null,null,"",null,null,null,null,null,null,null,null,null,null,null,null,null,null,0,0,0,0,0,"","","","","","","","","","",0,0,0,0,0,0,0,0,0,0]
[11,{"$f":"IF(DADOS!B18=\"\",\"\",DADOS!B18)","v":""},null,null,null,null,{"$f":"IF(DADOS!B18=\"\",\"\",DADOS!H18)","v":""},null,null,null,null,null,null,null,null,null,null,null,null,null,null,null,null,null,null,null,null,null,null,null,null,"",null,null,null,null,null,null,null,null,null,null,null,null,null,null,0,0,0,0,0,"","","","","","","","","","",0,0,0,0,0,0,0,0,0,0]
[12,{"$f":"IF(DADOS!B19=\"\",\"\",DADOS!B19)","v":""},null,null,null,null,{"$f":"IF(DADOS!B19=\"\",\"\",DADOS!H19)","v":""},null,null,null,null,null,null,null,null,null,null,null,null,null,null,null,null,null,null,null,null,null,null,null,null,"",null,null,null,null,null,null,null,null,null,null,null,null,null,null,0,0,0,0,0,"","","","","","","","","","",0,0,0,0,0,0,0,0,0,0]
[13,{"$f":"IF(DADOS!B20=\"\",\"\",DADOS!B20)","v":""},null,null,null,null,{"$f":"IF(DADOS!B20=\"\",\"\",DADOS!H20)","v":""},null,null,null,null,null,null,null,null,null,null,null,null,null,null,null,null,null,null,null,null,null,null,null,null,"",null,null,null,null,null,null,null,null,null,null,null,null,null,null,0,0,0,0,0,"","","","","","","","","","",0,0,0,0,0,0,0,0,0,0]
[14,{"$f":"IF(DADOS!B21=\"\",\"\",DADOS!B21)","v":""},null,null,null,null,{"$f":"IF(DADOS!B21=\"\",\"\",DADOS!H21)","v":""},null,null,null,null,null,null,null,null,null,null,null,null,null,null,null,null,null,null,null,null,null,null,null,null,"",null,null,null,null,null,null,null,null,null,null,null,null,null,null,0,0,0,0,0,"","","","","","","","","","",0,0,0,0,0,0,0,0,0,0]
[15,{"$f":"IF(DADOS!B22=\"\",\"\",DADOS!B22)","v":""},null,null,null,null,{"$f":"IF(DADOS!B22=\"\",\"\",DADOS!H22)","v":""},null,null,null,null,null,null,null,null,null,null,null,null,null,null,null,null,null,null,null,null,null,null,null,null,"",null,null,null,null,null,null,null,null,null,null,null,null,null,null,0,0,0,0,0,"","","","","","","","","","",0,0,0,0,0,0,0,0,0,0]
[16,{"$f":"IF(DADOS!B23=\"\",\"\",DADOS!B23)","v":""},null,null,null,null,{"$f":"IF(DADOS!B23=\"\",\"\",DADOS!H23)","v":""},null,null,null,null,null,null,null,null,null,null,null,null,null,null,null,null,null,null,null,null,null,null,null,null,"",null,null,null,null,null,null,null,null,null,null,null,null,null,null,0,0,0,0,0,"","","","","","","","","","",0,0,0,0,0,0,0,0,0,0]
[17,{"$f":"IF(DADOS!B24=\"\",\"\",DADOS!B24)","v":""},null,null,null,null,{"$f":"IF(DADOS!B24=\"\",\"\",DADOS!H24)","v":""},null,null,null,null,null,null,null,null,null,null,null,null,null,null,null,null,null,null,null,null,null,null,null,null,"",null,null,null,null,null,null,null,null,null,null,null,null,null,null,0,0,0,0,0,"","","","","","","","","","",0,0,0,0,0,0,0,0,0,0]
[18,{"$f":"IF(DADOS!B25=\"\",\"\",DADOS!B25)","v":""},null,null,null,null,{"$f":"IF(DADOS!B25=\"\",\"\",DADOS!H25)","v":""},null,null,null,null,null,null,null,null,null,null,null,null,null,null,null,null,null,null,null,null,null,null,null,null,"",null,null,null,null,null,null,null,null,null,null,null,null,null,null,0,0,0,0,0,"","","","","","","","","","",0,0,0,0,0,0,0,0,0,0]
[19,{"$f":"IF(DADOS!B26=\"\",\"\",DADOS!B26)","v":""},null,null,null,null,{"$f":"IF(DADOS!B26=\"\",\"\",DADOS!H26)","v":""},null,null,null,null,null,null,null,null,null,null,null,null,null,null,null,null,null,null,null,null,null,null,null,null,"",null,null,null,null,null,null,null,null,null,null,null,null,null,null,0,0,0,0,0,"","","","","","","","","","",0,0,0,0,0,0,0,0,0,0]
[20,{"$f":"IF(DADOS!B27=\"\",\"\",DADOS!B27)","v":""},null,null,null,null,{"$f":"IF(DADOS!B27=\"\",\"\",DADOS!H27)","v":""},null,null,null,null,null,null,null,null,null,null,null,null,null,null,null,null,null,null,null,null,null,null,null,null,"",null,null,null,null,null,null,null,null,null,null,null,null,null,null,0,0,0,0,0,"","","","","","","","","","",0,0,0,0,0,0,0,0,0,0]
[21,{"$f":"IF(DADOS!B28=\"\",\"\",DADOS!B28)","v":""},null,null,null,null,{"$f":"IF(DADOS!B28=\"\",\"\",DADOS!H28)","v":""},null,null,null,null,null,null,null,null,null,null,null,null,null,null,null,null,null,null,null,null,null,null,null,null,"",null,null,null,null,null,null,null,null,null,null,null,null,null,null,0,0,0,0,0,"","","","","","","","","","",0,0,0,0,0,0,0,0,0,0]
[22,{"$f":"IF(DADOS!B29=\"\",\"\",DADOS!B29)","v":""},null,null,null,null,{"$f":"IF(DADOS!B29=\"\",\"\",DADOS!H29)","v":""},null,null,null,null,null,null,null,null,null,null,null,null,null,null,null,null,null,null,null,null,null,null,null,null,"",null,null,null,null,null,null,null,null,null,null,null,null,null,null,0,0,0,0,0,"","","","","","","","","","",0,0,0,0,0,0,0,0,0,0]
[23,{"$f":"IF(DADOS!B30=\"\",\"\",DADOS!B30)","v":""},null,null,null,null,{"$f":"IF(DADOS!B30=\"\",\"\",DADOS!H30)","v":""},null,null,null,null,null,null,null,null,null,null,null,null,null,null,null,null,null,null,null,null,null,null,null,null,"",null,null,null,null,null,null,null,null,null,null,null,null,null,null,0,0,0,0,0,"","","","","","","","","","",0,0,0,0,0,0,0,0,0,0]
[24,{"$f":"IF(DADOS!B31=\"\",\"\",DADOS!B31)","v":""},null,null,null,null,{"$f":"IF(DADOS!B31=\"\",\"\",DADOS!H31)","v":""},null,null,null,null,null,null,null,null,null,null,null,null,null,null,null,null,null,null,null,null,null,null,null,null,"",null,null,null,null,null,null,null,null,null,null,null,null,null,null,0,0,0,0,0,"","","","","","","","","","",0,0,0,0,0,0,0,0,0,0]
[25,{"$f":"IF(DADOS!B32=\"\",\"\",DADOS!B32)","v":""},null,null,null,null,{"$f":"IF(DADOS!B32=\"\",\"\",DADOS!H32)","v":""},null,null,null,null,null,null,null,null,null,null,null,null,null,null,null,null,null,null,null,null,null,null,null,null,"",null,null,null,null,null,null,null,null,null,null,null,null,null,null,0,0,0,0,0,"","","","","","","","","","",0,0,0,0,0,0,0,0,0,0]
[26,{"$f":"IF(DADOS!B33=\"\",\"\",DADOS!B33)","v":""},null,null,null,null,{"$f":"IF(DADOS!B33=\"\",\"\",DADOS!H33)","v":""},null,null,null,null,null,null,null,null,null,null,null,null,null,null,null,null,null,null,null,null,null,null,null,null,"",null,null,null,null,null,null,null,null,null,null,null,null,null,null,0,0,0,0,0,"","","","","","","","","","",0,0,0,0,0,0,0,0,0,0]
[27,{"$f":"IF(DADOS!B34=\"\",\"\",DADOS!B34)","v":""},null,null,null,null,{"$f":"IF(DADOS!B34=\"\",\"\",DADOS!H34)","v":""},null,null,null,null,null,null,null,null,null,null,null,null,null,null,null,null,null,null,null,null,null,null,null,null,"",null,null,null,null,null,null,null,null,null,null,null,null,null,null,0,0,0,0,0,"","","","","","","","","","",0,0,0,0,0,0,0,0,0,0]
[28,{"$f":"IF(DADOS!B35=\"\",\"\",DADOS!B35)","v":""},null,null,null,null,{"$f":"IF(DADOS!B35=\"\",\"\",DADOS!H35)","v":""},null,null,null,null,null,null,null,null,null,null,null,null,null,null,null,null,null,null,null,null,null,null,null,null,"",null,null,null,null,null,null,null,null,null,null,null,null,null,null,0,0,0,0,0,"","","","","","","","","","",0,0,0,0,0,0,0,0,0,0]
[29,{"$f":"IF(DADOS!B36=\"\",\"\",DADOS!B36)","v":""},null,null,null,null,{"$f":"IF(DADOS!B36=\"\",\"\",DADOS!H36)","v":""},null,null,null,null,null,null,null,null,null,null,null,null,null,null,null,null,null,null,null,null,null,null,null,null,"",null,null,null,null,null,null,null,null,null,null,null,null,null,null,0,0,0,0,0,"","","","","","","","","","",0,0,0,0,0,0,0,0,0,0]
[30,{"$f":"IF(DADOS!B37=\"\",\"\",DADOS!B37)","v":""},null,null,null,null,{"$f":"IF(DADOS!B37=\"\",\"\",DADOS!H37)","v":""},null,null,null,null,null,null,null,null,null,null,null,null,null,null,null,null,null,null,null,null,null,null,null,null,"",null,null,null,null,null,null,null,null,null,null,null,null,null,null,0,0,0,0,0,"","","","","","","","","","",0,0,0,0,0,0,0,0,0,0]
[31,{"$f":"IF(DADOS!B38=\"\",\"\",DADOS!B38)","v":""},null,null,null,null,{"$f":"IF(DADOS!B38=\"\",\"\",DADOS!H38)","v":""},null,null,null,null,null,null,null,null,null,null,null,null,null,null,null,null,null,null,null,null,null,null,null,null,"",null,null,null,null,null,null,null,null,null,null,null,null,null,null,0,0,0,0,0,"","","","","","","","","","",0,0,0,0,0,0,0,0,0,0]
[32,{"$f":"IF(DADOS!B39=\"\",\"\",DADOS!B39)","v":""},null,null,null,null,{"$f":"IF(DADOS!B39=\"\",\"\",DADOS!H39)","v":""},null,null,null,null,null,null,null,null,null,null,null,null,null,null,null,null,null,null,null,null,null,null,null,null,"",null,null,null,null,null,null,null,null,null,null,null,null,null,null,0,0,0,0,0,"","","","","","","","","","",0,0,0,0,0,0,0,0,0,0]
[33,{"$f":"IF(DADOS!B40=\"\",\"\",DADOS!B40)","v":""},null,null,null,null,{"$f":"IF(DADOS!B40=\"\",\"\",DADOS!H40)","v":""},null,null,null,null,null,null,null,null,null,null,null,null,null,null,null,null,null,null,null,null,null,null,null,null,"",null,null,null,null,null,null,null,null,null,null,null,null,null,null,0,0,0,0,0,"","","","","","","","","","",0,0,0,0,0,0,0,0,0,0]
[34,{"$f":"IF(DADOS!B41=\"\",\"\",DADOS!B41)","v":""},null,null,null,null,{"$f":"IF(DADOS!B41=\"\",\"\",DADOS!H41)","v":""},null,null,null,null,null,null,null,null,null,null,null,null,null,null,null,null,null,null,null,null,null,null,null,null,"",null,null,null,null,null,null,null,null,null,null,null,null,null,null,0,0,0,0,0,"","","","","","","","","","",0,0,0,0,0,0,0,0,0,0]
[35,{"$f":"IF(DADOS!B42=\"\",\"\",DADOS!B42)","v":""},null,null,null,null,{"$f":"IF(DADOS!B42=\"\",\"\",DADOS!H42)","v":""},null,null,null,null,null,null,null,null,null,null,null,null,null,null,null,null,null,null,null,null,null,null,null,null,"",null,null,null,null,null,null,null,null,null,null,null,null,null,null,0,0,0,0,0,"","","","","","","","","","",0,0,0,0,0,0,0,0,0,0]
[36,{"$f":"IF(DADOS!B43=\"\",\"\",DADOS!B43)","v":""},null,null,null,null,{"$f":"IF(DADOS!B43=\"\",\"\",DADOS!H43)","v":""},null,null,null,null,null,null,null,null,null,null,null,null,null,null,null,null,null,null,null,null,null,null,null,null,"",null,null,null,null,null,null,null,null,null,null,null,null,null,null,0,0,0,0,0,"","","","","","","","","","",0,0,0,0,0,0,0,0,0,0]
[37,{"$f":"IF(DADOS!B44=\"\",\"\",DADOS!B44)","v":""},null,null,null,null,{"$f":"IF(DADOS!B44=\"\",\"\",DADOS!H44)","v":""},null,null,null,null,null,null,null,null,null,null,null,null,null,null,null,null,null,null,null,null,null,null,null,null,"",null,null,null,null,null,null,null,null,null,null,null,null,null,null,0,0,0,0,0,"","","","","","","","","","",0,0,0,0,0,0,0,0,0,0]
[38,{"$f":"IF(DADOS!B45=\"\",\"\",DADOS!B45)","v":""},null,null,null,null,{"$f":"IF(DADOS!B45=\"\",\"\",DADOS!H45)","v":""},null,null,null,null,null,null,null,null,null,null,null,null,null,null,null,null,null,null,null,null,null,null,null,null,"",null,null,null,null,null,null,null,null,null,null,null,null,null,null,0,0,0,0,0,"","","","","","","","","","",0,0,0,0,0,0,0,0,0,0]
[39,{"$f":"IF(DADOS!B46=\"\",\"\",DADOS!B46)","v":""},null,null,null,null,{"$f":"IF(DADOS!B46=\"\",\"\",DADOS!H46)","v":""},null,null,null,null,null,null,null,null,null,null,null,null,null,null,null,null,null,null,null,null,null,null,null,null,"",null,null,null,null,null,null,null,null,null,null,null,null,null,null,0,0,0,0,0,"","","","","","","","","","",0,0,0,0,0,0,0,0,0,0]
[40,{"$f":"IF(DADOS!B47=\"\",\"\",DADOS!B47)","v":""},null,null,null,null,{"$f":"IF(DADOS!B47=\"\",\"\",DADOS!H47)","v":""},null,null,null,null,null,null,null,null,null,null,null,null,null,null,null,null,null,null,null,null,null,null,null,null,"",null,null,null,null,null,null,null,null,null,null,null,null,null,null,0,0,0,0,0,"","","","","","","","","","",0,0,0,0,0,0,0,0,0,0]
[41,{"$f":"IF(DADOS!B48=\"\",\"\",DADOS!B48)","v":""},null,null,null,null,{"$f":"IF(DADOS!B48=\"\",\"\",DADOS!H48)","v":""},null,null,null,null,null,null,null,null,null,null,null,null,null,null,null,null,null,null,null,null,null,null,null,null,"",null,null,null,null,null,null,null,null,null,null,null,null,null,null,0,0,0,0,0,"","","","","","","","","","",0,0,0,0,0,0,0,0,0,0]
[42,{"$f":"IF(DADOS!B49=\"\",\"\",DADOS!B49)","v":""},null,null,null,null,{"$f":"IF(DADOS!B49=\"\",\"\",DADOS!H49)","v":""},null,null,null,null,null,null,null,null,null,null,null,null,null,null,null,null,null,null,null,null,null,null,null,null,"",null,null,null,null,null,null,null,null,null,null,null,null,null,null,0,0,0,0,0,"","","","","","","","","","",0,0,0,0,0,0,0,0,0,0]
[43,{"$f":"IF(DADOS!B50=\"\",\"\",DADOS!B50)","v":""},null,null,null,null,{"$f":"IF(DADOS!B50=\"\",\"\",DADOS!H50)","v":""},null,null,null,null,null,null,null,null,null,null,null,null,null,null,null,null,null,null,null,null,null,null,null,null,"",null,null,null,null,null,null,null,null,null,null,null,null,null,null,0,0,0,0,0,"","","","","","","","","","",0,0,0,0,0,0,0,0,0,0]
[44,{"$f":"IF(DADOS!B51=\"\",\"\",DADOS!B51)","v":""},null,null,null,null,{"$f":"IF(DADOS!B51=\"\",\"\",DADOS!H51)","v":""},null,null,null,null,null,null,null,null,null,null,null,null,null,null,null,null,null,null,null,null,null,null,null,null,"",null,null,null,null,null,null,null,null,null,null,null,null,null,null,0,0,0,0,0,"","","","","","","","","","",0,0,0,0,0,0,0,0,0,0]
[45,{"$f":"IF(DADOS!B52=\"\",\"\",DADOS!B52)","v":""},null,null,null,null,{"$f":"IF(DADOS!B52=\"\",\"\",DADOS!H52)","v":""},null,null,null,null,null,null,null,null,null,null,null,null,null,null,null,null,null,null,null,null,null,null,null,null,"",null,null,null,null,null,null,null,null,null,null,null,null,null,null,0,0,0,0,0,"","","","","","","","","","",0,0,0,0,0,0,0,0,0,0]
[46,{"$f":"IF(DADOS!B53=\"\",\"\",DADOS!B53)","v":""},null,null,null,null,{"$f":"IF(DADOS!B53=\"\",\"\",DADOS!H53)","v":""},null,null,null,null,null,null,null,null,null,null,null,null,null,null,null,null,null,null,null,null,null,null,null,null,"",null,null,null,null,null,null,null,null,null,null,null,null,null,null,0,0,0,0,0,"","","","","","","","","","",0,0,0,0,0,0,0,0,0,0]
[47,{"$f":"IF(DADOS!B54=\"\",\"\",DADOS!B54)","v":""},null,null,null,null,{"$f":"IF(DADOS!B54=\"\",\"\",DADOS!H54)","v":""},null,null,null,null,null,null,null,null,null,null,null,null,null,null,null,null,null,null,null,null,null,null,null,null,"",null,null,null,null,null,null,null,null,null,null,null,null,null,null,0,0,0,0,0,"","","","","","","","","","",0,0,0,0,0,0,0,0,0,0]
[48,{"$f":"IF(DADOS!B55=\"\",\"\",DADOS!B55)","v":""},null,null,null,null,{"$f":"IF(DADOS!B55=\"\",\"\",DADOS!H55)","v":""},null,null,null,null,null,null,null,null,null,null,null,null,null,null,null,null,null,null,null,null,null,null,null,null,"",null,null,null,null,null,null,null,null,null,null,null,null,null,null,0,0,0,0,0,"","","","","","","","","","",0,0,0,0,0,0,0,0,0,0]
[49,{"$f":"IF(DADOS!B56=\"\",\"\",DADOS!B56)","v":""},null,null,null,null,{"$f":"IF(DADOS!B56=\"\",\"\",DADOS!H56)","v":""},null,null,null,null,null,null,null,null,null,null,null,null,null,null,null,null,null,null,null,null,null,null,null,null,"",null,null,null,null,null,null,null,null,null,null,null,null,null,null,0,0,0,0,0,"","","","","","","","","","",0,0,0,0,0,0,0,0,0,0]
[50,{"$f":"IF(DADOS!B57=\"\",\"\",DADOS!B57)","v":""},null,null,null,null,{"$f":"IF(DADOS!B57=\"\",\"\",DADOS!H57)","v":""},null,null,null,null,null,null,null,null,null,null,null,null,null,null,null,null,null,null,null,null,null,null,null,null,"",null,null,null,null,null,null,null,null,null,null,null,null,null,null,0,0,0,0,0,"","","","","","","","","","",0,0,0,0,0,0,0,0,0,0]
[{"$f":"ROW(B59)-8","v":51},{"$f":"IF(DADOS!B58=\"\",\"\",DADOS!B58)","v":""},null,null,null,null,{"$f":"IF(DADOS!B58=\"\",\"\",DADOS!H58)","v":""},null,null,null,null,null,null,null,null,null,null,null,null,null,null,null,null,null,null,null,null,null,null,null,null,"",null,null,null,null,null,null,null,null,null,null,null,null,null,null,0,0,0,0,0,"","","","","","","","","","",0,0,0,0,0,0,0,0,0,0]
[null,null,null,null,null,null,null,null,null,null,null,null,{"$f":"COUNTIF(M9:M59,\"B\")","v":0},{"$f":"COUNTIF(N9:N59,\"B\")","v":0},{"$f":"COUNTIF(O9:O59,\"D\")","v":0},{"$f":"COUNTIF(P9:P60,\"B\")","v":0},{"$f":"COUNTIF(Q9:Q59,\"A\")","v":0},{"$f":"COUNTIF(R9:R59,\"C\")","v":0},{"$f":"COUNTIF(S9:S59,\"C\")","v":0},{"$f":"COUNTIF(T9:T59,\"C\")","v":0},{"$f":"COUNTIF(U9:U59,\"D\")","v":0},{"$f":"COUNTIF(V9:V59,\"D\")","v":0}]
[null,null,null,null,null,null,null,null,null,null,null,null,{"$f":"M61/$F$6","v":{"$error":"#DIV/0!"}},{"$f":"N61/$F$6","v":{"$error":"#DIV/0!"}},{"$error":"#DIV/0!"},{"$error":"#DIV/0!"},{"$error":"#DIV/0!"},{"$error":"#DIV/0!"},{"$error":"#DIV/0!"},{"$error":"#DIV/0!"},{"$error":"#DIV/0!"},{"$error":"#DIV/0!"},{"$error":"#DIV/0!"}]
[]
[]
[null,null,null,null,null,null,null,null,null,null,null,null,null,null,null,null,null,null,"RESUMO"]
[null,null,null,null,null,null,null,null,null,null,null,null,null,null,null,null,null,null,null,null,null,null,null,null,"PRODUÇÃO DE TEXTO"]
[null,null,null,null,null,null,null,null,null,null,null,null,null,null,null,null,null,null,"Velocidade de leitura",null,null,null,null,null,null,null,null,"SIM","PARCIALMENTE","NÃO"]
[null,null,null,null,null,null,null,null,null,null,null,null,null,null,null,null,null,null,"Ler em velocidade adequada",null,{"$f":"(COUNTIF($H$10:$H$60,S68))/$F$6","v":{"$error":"#DIV/0!"}},null,null,null,"Escreveu adequadamente as palavras do texto? ",null,null,{"$f":"COUNTIF($W$10:$W$60,AB$67)/$F$6","v":{"$error":"#DIV/0!"}},{"$f":"COUNTIF($W$10:$W$60,AC$67)/$F$6","v":{"$error":"#DIV/0!"}},{"$f":"COUNTIF($W$10:$W$60,AD$67)/$F$6","v":{"$error":"#DIV/0!"}}]
[null,null,null,null,null,null,null,null,null,null,null,null,null,null,null,null,null,null,"Ler em baixa velocidade",null,{"$f":"COUNTIF($H$10:$H$60,S69)/$F$6","v":{"$error":"#DIV/0!"}},null,null,null,"Iniciou os parágrafos com letra maiúscula? ",null,null,{"$f":"COUNTIF($X$10:$X$60,AB$67)/$F$6","v":{"$error":"#DIV/0!"}},{"$f":"COUNTIF($X$10:$X$60,AC$67)/$F$6","v":{"$error":"#DIV/0!"}},{"$f":"COUNTIF($X$10:$X$60,AD$67)/$F$6","v":{"$error":"#DIV/0!"}}]
[null,null,null,null,null,null,null,null,null,null,null,null,null,null,null,null,null,null,"Ler em alta velocidade.",null,{"$f":"COUNTIF($H$10:$H$60,S70)/$F$6","v":{"$error":"#DIV/0!"}},null,null,null,"Pontuou adequadamente o texto? ",null,null,{"$f":"COUNTIF($Y$10:$Y$60,AB$67)/$F$6","v":{"$error":"#DIV/0!"}},{"$f":"COUNTIF($Y$10:$Y$60,AC$67)/$F$6","v":{"$error":"#DIV/0!"}},{"$f":"COUNTIF($Y$10:$Y$60,AD$67)/$F$6","v":{"$error":"#DIV/0!"}}]
[null,null,null,null,null,null,null,null,null,null,null,null,null,null,null,null,null,null,null,null,null,null,null,null,"Acentuou corretamente as palavras do texto? ",null,null,{"$f":"COUNTIF($Z$10:$Z$60,AB$67)/$F$6","v":{"$error":"#DIV/0!"}},{"$f":"COUNTIF($Z$10:$Z$60,AC$67)/$F$6","v":{"$error":"#DIV/0!"}},{"$f":"COUNTIF($Z$10:$Z$60,AD$67)/$F$6","v":{"$error":"#DIV/0!"}}]
[null,null,null,null,null,null,null,null,null,null,null,null,null,null,null,null,null,null,"Precisão na Leitura",null,null,null,null,null,"Escreveu com letra legível para que todos possam entender? ",null,null,{"$f":"COUNTIF($AA$10:$AA$60,AB$67)/$F$6","v":{"$error":"#DIV/0!"}},{"$f":"COUNTIF($AA$10:$AA$60,AC$67)/$F$6","v":{"$error":"#DIV/0!"}},{"$f":"COUNTIF($AA$10:$AA$60,AD$67)/$F$6","v":{"$error":"#DIV/0!"}}]
[null,null,null,null,null,null,null,null,null,null,null,null,null,null,null,null,null,null,"Ruim",null,{"$f":"COUNTIF($I$10:$I$60,S73)/$F$6","v":{"$error":"#DIV/0!"}},null,null,null,"Substituiu palavras repetidas e eliminou as desnecessárias? ",null,null,{"$f":"COUNTIF($AB$10:$AB$60,AB$67)/$F$6","v":{"$error":"#DIV/0!"}},{"$f":"COUNTIF($AB$10:$AB$60,AC$67)/$F$6","v":{"$error":"#DIV/0!"}},{"$f":"COUNTIF($AB$10:$AB$60,AD$67)/$F$6","v":{"$error":"#DIV/0!"}}]
[null,null,null,null,null,null,null,null,null,null,null,null,null,null,null,null,null,null,"Boa",null,{"$f":"COUNTIF($I$10:$I$60,S74)/$F$6","v":{"$error":"#DIV/0!"}},null,null,null,"Estabeleceu a articulação das ideias no texto?",null,null,{"$f":"COUNTIF($AC$10:$AC$60,AB$67)/$F$6","v":{"$error":"#DIV/0!"}},{"$f":"COUNTIF($AC$10:$AC$60,AC$67)/$F$6","v":{"$error":"#DIV/0!"}},{"$f":"COUNTIF($AC$10:$AC$60,AD$67)/$F$6","v":{"$error":"#DIV/0!"}}]
[null,null,null,null,null,null,null,null,null,null,null,null,null,null,null,null,null,null,"Regular",null,{"$f":"COUNTIF($I$10:$I$60,S75)/$F$6","v":{"$error":"#DIV/0!"}},null,null,null,"Demonstrar o uso correto da estrutura textual: introdução, desenvolvimento e conclusão;",null,null,{"$f":"COUNTIF($AD$10:$AD$60,AB$67)/$F$6","v":{"$error":"#DIV/0!"}},{"$f":"COUNTIF($AD$10:$AD$60,AC$67)/$F$6","v":{"$error":"#DIV/0!"}},{"$f":"COUNTIF($AD$10:$AD$60,AD$67)/$F$6","v":{"$error":"#DIV/0!"}}]
[null,null,null,null,null,null,null,null,null,null,null,null,null,null,null,null,null,null,"Ótima",null,{"$f":"COUNTIF($I$10:$I$60,S76)/$F$6","v":{"$error":"#DIV/0!"}},null,null,null,"Apresentar os elementos do texto solicitado: pedido, motivos com argumentos e opinião ou ponto de vista.",null,null,{"$f":"COUNTIF($AE$10:$AE$60,AB$67)/$F$6","v":{"$error":"#DIV/0!"}},{"$f":"COUNTIF($AE$10:$AE$60,AC$67)/$F$6","v":{"$error":"#DIV/0!"}},{"$f":"COUNTIF($AE$10:$AE$60,AD$67)/$F$6","v":{"$error":"#DIV/0!"}}]
[]
[null,null,null,null,null,null,null,null,null,null,null,null,null,null,null,null,null,null,"Expressividade de Leitura"]
[null,null,null,null,null,null,null,null,null,null,null,null,null,null,null,null,null,null,"Ler sem expressividade",null,{"$f":"COUNTIF($J$10:$J$60,S79)/$F$6","v":{"$error":"#DIV/0!"}}]
[null,null,null,null,null,null,null,null,null,null,null,null,null,null,null,null,null,null,"Ler com pouca expressividade",null,{"$f":"COUNTIF($J$10:$J$60,S80)/$F$6","v":{"$error":"#DIV/0!"}}]
[null,null,null,null,null,null,null,null,null,null,null,null,null,null,null,null,null,null,"Ler com expressividade adequada",null,{"$f":"COUNTIF($J$10:$J$60,S81)/$F$6","v":{"$error":"#DIV/0!"}}]
[]
[null,null,null,null,null,null,null,null,null,null,null,null,null,null,null,null,null,null,"Rota de Leitura"]
[null,null,null,null,null,null,null,null,null,null,null,null,null,null,null,null,null,null,"Rota Lexical",null,{"$f":"COUNTIF($K$10:$K$60,S84)/$F$6","v":{"$error":"#DIV/0!"}}]
[null,null,null,null,null,null,null,null,null,null,null,null,null,null,null,null,null,null,"Rota Fonológica",null,{"$f":"COUNTIF($K$10:$K$60,S85)/$F$6","v":{"$error":"#DIV/0!"}}]
[]
[null,null,null,null,null,null,null,null,null,null,null,null,null,null,null,null,null,null,"Fase de Leitura do Aluno"]
[null,null,null,null,null,null,null,null,null,null,null,null,null,null,null,null,null,null,"Pré-Silábica",null,{"$f":"COUNTIF($L$10:$L$60,S88)/$F$6","v":{"$error":"#DIV/0!"}}]
[null,null,null,null,null,null,null,null,null,null,null,null,null,null,null,null,null,null,"Silábica",null,{"$f":"COUNTIF($L$10:$L$60,S89)/$F$6","v":{"$error":"#DIV/0!"}}]
[null,null,null,null,null,null,null,null,null,null,null,null,null,null,null,null,null,null,"Alfabética",null,{"$f":"COUNTIF($L$10:$L$60,S90)/$F$6","v":{"$error":"#DIV/0!"}}]

{"sheet":"GRÁFICOS","index":2,"n_rows":24,"n_cols":1,"rows_kept":24,"cut":false,"hidden":false,"merged":[[23,0,23,7],[3,0,3,15],[0,0,0,27],[1,0,1,27],[2,0,2,27]]}
["ESTADO DE MATO GROSSO DO SUL"]
["PREFEITURA MUNICIPAL DE CAMPO GRANDE"]
["SECRETARIA MUNICIPAL DE EDUCAÇÃO"]
["FLUÊNCIA DE LEITURA"]
[]
[]
[]
[]
[]
[]
[]
[]
[]
[]
[]
[]
[]
[]
[]
[]
[]
[]
[]
["QUESTÃO 10"]